[Event "Early-Titled-Tuesday-Blitz-December-26-2023"]
[Site "Chess.com"]
[Date "2023.12.26"]
[Round "2"]
[White "bolwin"]
[Black "DishonorOnYourCow"]
[Result "0-1"]
[WhiteElo "2251"]
[BlackElo "2520"]
[TimeControl "180+1"]
[EndTime "8:18:02 PST"]
[Termination "DishonorOnYourCow won by resignation"]

1. Nf3 {[%clk 0:03:00]} 1... d5 {[%clk 0:02:59.2]} 2. c4 {[%clk 0:03:00.8]} 2...
dxc4 {[%clk 0:02:58]} 3. e3 {[%clk 0:03:00.3]} 3... Nf6 {[%clk 0:02:58.9]} 4.
Bxc4 {[%clk 0:02:59.9]} 4... e6 {[%clk 0:02:59.1]} 5. d4 {[%clk 0:02:59.8]} 5...
c5 {[%clk 0:02:59.5]} 6. O-O {[%clk 0:02:59.6]} 6... Nc6 {[%clk 0:02:59.5]} 7.
Qe2 {[%clk 0:02:58.7]} 7... a6 {[%clk 0:02:59.2]} 8. a4 {[%clk 0:02:58]} 8...
cxd4 {[%clk 0:02:58]} 9. Rd1 {[%clk 0:02:58.1]} 9... Be7 {[%clk 0:02:57.7]} 10.
exd4 {[%clk 0:02:58.2]} 10... O-O {[%clk 0:02:57.1]} 11. Nc3 {[%clk 0:02:58.3]}
11... Nb4 {[%clk 0:02:50.2]} 12. Bg5 {[%clk 0:02:54.7]} 12... Nfd5 {[%clk
0:02:46.9]} 13. Bxe7 {[%clk 0:02:50.3]} 13... Nxe7 {[%clk 0:02:46.5]} 14. Ne5
{[%clk 0:02:47.4]} 14... Nbd5 {[%clk 0:02:42.8]} 15. Ne4 {[%clk 0:02:38.5]}
15... Bd7 {[%clk 0:02:34.4]} 16. Qh5 {[%clk 0:02:30.5]} 16... Ng6 {[%clk
0:02:26.7]} 17. Ng5 {[%clk 0:02:14.6]} 17... Nf6 {[%clk 0:02:25.8]} 18. Qh3
{[%clk 0:02:03.2]} 18... Rc8 {[%clk 0:01:40.5]} 19. Bb3 {[%clk 0:01:20.1]} 19...
Qe7 {[%clk 0:01:00.1]} 20. Re1 {[%clk 0:00:54.4]} 20... Nf4 {[%clk 0:00:53.2]}
21. Qh4 {[%clk 0:00:52.9]} 21... Ng6 {[%clk 0:00:47.9]} 22. Qh3 {[%clk
0:00:52.8]} 22... Rce8 {[%clk 0:00:28.6]} 23. Rad1 {[%clk 0:00:51.2]} 23... Bc6
{[%clk 0:00:25.3]} 24. d5 {[%clk 0:00:42.4]} 24... exd5 {[%clk 0:00:21.6]} 25.
Nd3 {[%clk 0:00:28]} 25... Qd8 {[%clk 0:00:20.8]} 26. g3 {[%clk 0:00:20]} 26...
h6 {[%clk 0:00:20.8]} 27. Nf3 {[%clk 0:00:17.8]} 27... d4 {[%clk 0:00:21]} 28.
Nfe5 {[%clk 0:00:13.9]} 28... Nxe5 {[%clk 0:00:19.8]} 29. Nxe5 {[%clk
0:00:13.8]} 29... Re7 {[%clk 0:00:10.9]} 30. Bc2 {[%clk 0:00:10.7]} 30... Bd5
{[%clk 0:00:10.5]} 31. Qf5 {[%clk 0:00:10.6]} 31... Rfe8 {[%clk 0:00:09.6]} 32.
f4 {[%clk 0:00:08.9]} 32... Qd6 {[%clk 0:00:08.3]} 33. Rxd4 {[%clk 0:00:08.8]}
33... g6 {[%clk 0:00:08.5]} 34. Qh3 {[%clk 0:00:05.7]} 34... Qc5 {[%clk
0:00:08.9]} 35. Rd1 {[%clk 0:00:05.2]} 35... Qxc2 {[%clk 0:00:08.9]} 36. R4d2
{[%clk 0:00:04.1]} 36... Qf5 {[%clk 0:00:08.6]} 37. Qf1 {[%clk 0:00:02.6]} 37...
Be4 {[%clk 0:00:08.2]} 38. Qf2 {[%clk 0:00:03.5]} 38... Ng4 {[%clk 0:00:08.3]}
39. Qc5 {[%clk 0:00:04]} 39... Nxe5 {[%clk 0:00:08.4]} 40. fxe5 {[%clk
0:00:03.5]} 40... Rxe5 {[%clk 0:00:09.3]} 41. Qf2 {[%clk 0:00:04.1]} 41... Qg4
{[%clk 0:00:09.3]} 42. Qf4 {[%clk 0:00:03.9]} 42... Qxf4 {[%clk 0:00:09]} 43.
gxf4 {[%clk 0:00:04.8]} 43... Rf5 {[%clk 0:00:09.9]} 44. Rd4 {[%clk 0:00:04.8]}
44... Rxf4 {[%clk 0:00:10]} 45. Re1 {[%clk 0:00:04.9]} 45... Kg7 {[%clk
0:00:10.4]} 46. Rd7 {[%clk 0:00:04.8]} 46... Rg4+ {[%clk 0:00:09.9]} 47. Kf2
{[%clk 0:00:04.8]} 47... Bc6 {[%clk 0:00:10.3]} 48. Rc7 {[%clk 0:00:03.9]} 48...
Rxe1 {[%clk 0:00:09.8]} 49. Kxe1 {[%clk 0:00:04.6]} 49... Rf4 {[%clk 0:00:10.5]}
50. Ke2 {[%clk 0:00:03.6]} 50... Rxa4 {[%clk 0:00:10.7]} 51. b3 {[%clk
0:00:03.5]} 51... Rb4 {[%clk 0:00:11.3]} 52. Kd2 {[%clk 0:00:03.5]} 52... Rxb3
{[%clk 0:00:11.7]} 0-1

[Event "Early-Titled-Tuesday-Blitz-December-26-2023"]
[Site "Chess.com"]
[Date "2023.12.26"]
[Round "2"]
[White "AGW2016"]
[Black "GAO"]
[Result "1/2-1/2"]
[WhiteElo "2545"]
[BlackElo "2324"]
[TimeControl "180+1"]
[EndTime "8:18:06 PST"]
[Termination "Game drawn - insufficient material"]

1. d4 {[%clk 0:03:00.9]} 1... Nf6 {[%clk 0:02:18.4]} 2. c4 {[%clk 0:03:01]} 2...
e6 {[%clk 0:02:04.6]} 3. Nf3 {[%clk 0:03:00]} 3... Bb4+ {[%clk 0:02:04.7]} 4.
Bd2 {[%clk 0:03:00.1]} 4... Qe7 {[%clk 0:02:05]} 5. g3 {[%clk 0:03:00.4]} 5...
Nc6 {[%clk 0:02:03.4]} 6. Nc3 {[%clk 0:03:00.8]} 6... d6 {[%clk 0:02:01.7]} 7.
Bg2 {[%clk 0:03:00]} 7... O-O {[%clk 0:02:01.3]} 8. O-O {[%clk 0:03:00.2]} 8...
a5 {[%clk 0:01:58.2]} 9. Qc2 {[%clk 0:02:57.7]} 9... Re8 {[%clk 0:01:53.2]} 10.
e4 {[%clk 0:02:42.8]} 10... e5 {[%clk 0:01:49.2]} 11. d5 {[%clk 0:02:40.4]}
11... Nb8 {[%clk 0:01:32.3]} 12. Nb5 {[%clk 0:02:20.1]} 12... Bc5 {[%clk
0:01:27.4]} 13. b3 {[%clk 0:02:07.2]} 13... Na6 {[%clk 0:01:26.3]} 14. a3 {[%clk
0:02:06.7]} 14... Bb6 {[%clk 0:01:24.8]} 15. b4 {[%clk 0:02:06.7]} 15... Bd7
{[%clk 0:01:20.3]} 16. Rfe1 {[%clk 0:01:57]} 16... c6 {[%clk 0:01:14.7]} 17.
dxc6 {[%clk 0:01:54.3]} 17... bxc6 {[%clk 0:01:15.2]} 18. Nc3 {[%clk 0:01:54.9]}
18... axb4 {[%clk 0:01:12.4]} 19. axb4 {[%clk 0:01:52.7]} 19... Nxb4 {[%clk
0:01:13.3]} 20. Qb3 {[%clk 0:01:39.8]} 20... Bc5 {[%clk 0:01:12.9]} 21. Na4
{[%clk 0:01:29.2]} 21... Be6 {[%clk 0:01:02]} 22. Bxb4 {[%clk 0:01:19.3]} 22...
Rab8 {[%clk 0:00:55.5]} 23. Nxc5 {[%clk 0:01:18.8]} 23... dxc5 {[%clk
0:00:54.5]} 24. Bxc5 {[%clk 0:01:19.3]} 24... Qxc5 {[%clk 0:00:54]} 25. Qc3
{[%clk 0:01:19.3]} 25... Nd7 {[%clk 0:00:38.7]} 26. Rec1 {[%clk 0:01:08.4]}
26... f6 {[%clk 0:00:34.8]} 27. Ra5 {[%clk 0:01:06.5]} 27... Qb4 {[%clk
0:00:32.4]} 28. Qxb4 {[%clk 0:01:04.3]} 28... Rxb4 {[%clk 0:00:33.3]} 29. Ra7
{[%clk 0:01:04]} 29... Nc5 {[%clk 0:00:31.5]} 30. Nd2 {[%clk 0:00:56.6]} 30...
Rb2 {[%clk 0:00:26.6]} 31. Nf1 {[%clk 0:00:54.4]} 31... Nd3 {[%clk 0:00:24.5]}
32. Rd1 {[%clk 0:00:53.8]} 32... Nxf2 {[%clk 0:00:21.7]} 33. Rd6 {[%clk
0:00:54.5]} 33... Ng4 {[%clk 0:00:17.3]} 34. Bh3 {[%clk 0:00:49.1]} 34... h5
{[%clk 0:00:16.2]} 35. Rxc6 {[%clk 0:00:49.3]} 35... Bf7 {[%clk 0:00:12.2]} 36.
Rcc7 {[%clk 0:00:48.7]} 36... Rf8 {[%clk 0:00:11.7]} 37. Bxg4 {[%clk 0:00:46.6]}
37... hxg4 {[%clk 0:00:11.8]} 38. Ne3 {[%clk 0:00:47.4]} 38... Rb1+ {[%clk
0:00:10.1]} 39. Kf2 {[%clk 0:00:47.2]} 39... Rb2+ {[%clk 0:00:10.7]} 40. Ke1
{[%clk 0:00:47.3]} 40... Rb1+ {[%clk 0:00:10.5]} 41. Kd2 {[%clk 0:00:47.7]}
41... Rb2+ {[%clk 0:00:10.9]} 42. Kc3 {[%clk 0:00:48.2]} 42... Rxh2 {[%clk
0:00:07.8]} 43. Nf5 {[%clk 0:00:48.8]} 43... Rf2 {[%clk 0:00:05.6]} 44. Nd6
{[%clk 0:00:49.3]} 44... Rf3+ {[%clk 0:00:05.7]} 45. Kb4 {[%clk 0:00:49.8]}
45... Rxg3 {[%clk 0:00:05.8]} 46. Nxf7 {[%clk 0:00:49.8]} 46... Re3 {[%clk
0:00:05.4]} 47. Ng5 {[%clk 0:00:46.8]} 47... Rb8+ {[%clk 0:00:03.4]} 48. Kc5
{[%clk 0:00:47.5]} 48... fxg5 {[%clk 0:00:04.1]} 49. Rxg7+ {[%clk 0:00:48]}
49... Kf8 {[%clk 0:00:04.4]} 50. Rxg5 {[%clk 0:00:47.8]} 50... Rc8+ {[%clk
0:00:04.7]} 51. Kd5 {[%clk 0:00:47.9]} 51... Rd3+ {[%clk 0:00:04.4]} 52. Kxe5
{[%clk 0:00:48.5]} 52... Re8+ {[%clk 0:00:04.9]} 53. Kf4 {[%clk 0:00:48.6]}
53... Re7 {[%clk 0:00:05.2]} 54. Ra8+ {[%clk 0:00:44.4]} 54... Kf7 {[%clk
0:00:05]} 55. Rf5+ {[%clk 0:00:41.8]} 55... Ke6 {[%clk 0:00:05.4]} 56. Ra6+
{[%clk 0:00:40.3]} 56... Kd7 {[%clk 0:00:05.4]} 57. Rd5+ {[%clk 0:00:41]} 57...
Rxd5 {[%clk 0:00:05.2]} 58. cxd5 {[%clk 0:00:41.7]} 58... g3 {[%clk 0:00:04.5]}
59. Ra2 {[%clk 0:00:38.2]} 59... Kd6 {[%clk 0:00:02.9]} 60. Rg2 {[%clk
0:00:37.8]} 60... Kc5 {[%clk 0:00:02.6]} 61. Rxg3 {[%clk 0:00:37.7]} 61... Kd4
{[%clk 0:00:02.9]} 62. d6 {[%clk 0:00:27.9]} 62... Rf7+ {[%clk 0:00:02.7]} 63.
Kg5 {[%clk 0:00:27.2]} 63... Kxe4 {[%clk 0:00:03.3]} 64. Kg6 {[%clk 0:00:25.7]}
64... Rd7 {[%clk 0:00:04.2]} 65. Rg4+ {[%clk 0:00:25.1]} 65... Kd5 {[%clk
0:00:05.1]} 66. Kf5 {[%clk 0:00:25.1]} 66... Kxd6 {[%clk 0:00:05.6]} 67. Rd4+
{[%clk 0:00:24.4]} 67... Kc7 {[%clk 0:00:06.5]} 68. Rc4+ {[%clk 0:00:24.5]}
68... Kd8 {[%clk 0:00:06.8]} 69. Ke6 {[%clk 0:00:25.1]} 69... Re7+ {[%clk
0:00:07]} 70. Kf6 {[%clk 0:00:25.5]} 70... Rd7 {[%clk 0:00:07.5]} 71. Rc6 {[%clk
0:00:25.7]} 71... Rd1 {[%clk 0:00:07.5]} 72. Ke6 {[%clk 0:00:25.1]} 72... Re1+
{[%clk 0:00:07.1]} 73. Kf5 {[%clk 0:00:25.7]} 73... Rf1+ {[%clk 0:00:07.7]} 74.
Ke5 {[%clk 0:00:25.5]} 74... Re1+ {[%clk 0:00:08.2]} 75. Kd4 {[%clk 0:00:26]}
75... Rd1+ {[%clk 0:00:08.8]} 76. Ke3 {[%clk 0:00:26.7]} 76... Re1+ {[%clk
0:00:09.1]} 77. Kd2 {[%clk 0:00:27.3]} 77... Re7 {[%clk 0:00:09.5]} 78. Rd6+
{[%clk 0:00:27.9]} 78... Rd7 {[%clk 0:00:10.3]} 79. Rxd7+ {[%clk 0:00:28.7]}
79... Kxd7 {[%clk 0:00:10.9]} 1/2-1/2

[Event "Early-Titled-Tuesday-Blitz-December-26-2023"]
[Site "Chess.com"]
[Date "2023.12.26"]
[Round "2"]
[White "Iball95"]
[Black "Let_it_be_1"]
[Result "1/2-1/2"]
[WhiteElo "2805"]
[BlackElo "2584"]
[TimeControl "180+1"]
[EndTime "8:18:10 PST"]
[Termination "Game drawn by repetition"]

1. e4 {[%clk 0:02:18.1]} 1... e6 {[%clk 0:02:59.8]} 2. d4 {[%clk 0:02:17.9]}
2... d5 {[%clk 0:03:00.2]} 3. Nc3 {[%clk 0:02:18.6]} 3... Nf6 {[%clk 0:03:00]}
4. Bd3 {[%clk 0:02:18.5]} 4... c5 {[%clk 0:02:59.5]} 5. Nf3 {[%clk 0:02:18.1]}
5... Nc6 {[%clk 0:02:52.7]} 6. exd5 {[%clk 0:02:17.8]} 6... Nxd5 {[%clk
0:02:48.2]} 7. Nxd5 {[%clk 0:02:18]} 7... Qxd5 {[%clk 0:02:47]} 8. dxc5 {[%clk
0:02:18.6]} 8... Bxc5 {[%clk 0:02:44.1]} 9. O-O {[%clk 0:02:19.2]} 9... e5
{[%clk 0:02:31.3]} 10. Nxe5 {[%clk 0:02:04]} 10... Bxf2+ {[%clk 0:01:53.9]} 11.
Rxf2 {[%clk 0:01:51.6]} 11... Nxe5 {[%clk 0:01:54.2]} 12. Qh5 {[%clk 0:01:26.3]}
12... Be6 {[%clk 0:01:43.8]} 13. Re2 {[%clk 0:01:15.6]} 13... Qd4+ {[%clk
0:01:17.1]} 14. Be3 {[%clk 0:01:16]} 14... Qxb2 {[%clk 0:01:17.1]} 15. Rc1
{[%clk 0:00:29.7]} 15... Rc8 {[%clk 0:00:46.6]} 16. Rf1 {[%clk 0:00:23.7]} 16...
Nxd3 {[%clk 0:00:39.3]} 17. cxd3 {[%clk 0:00:24.6]} 17... Qb4 {[%clk 0:00:35.1]}
18. h3 {[%clk 0:00:11]} 18... O-O {[%clk 0:00:34.2]} 19. Rf4 {[%clk 0:00:09.4]}
19... Qb1+ {[%clk 0:00:32.3]} 20. Kh2 {[%clk 0:00:10]} 20... Qxd3 {[%clk
0:00:32.5]} 21. Bd4 {[%clk 0:00:07.6]} 21... Qg6 {[%clk 0:00:23.4]} 22. Qe5
{[%clk 0:00:07]} 22... Rfe8 {[%clk 0:00:20.6]} 23. Re3 {[%clk 0:00:07.1]} 23...
Bd7 {[%clk 0:00:20]} 24. Qd5 {[%clk 0:00:05.8]} 24... Rxe3 {[%clk 0:00:18.1]}
25. Bxe3 {[%clk 0:00:06.2]} 25... Bc6 {[%clk 0:00:17.8]} 26. Qd2 {[%clk
0:00:05.7]} 26... Re8 {[%clk 0:00:16.6]} 27. Bd4 {[%clk 0:00:05.7]} 27... Re4
{[%clk 0:00:13.6]} 28. Bxa7 {[%clk 0:00:05.2]} 28... h6 {[%clk 0:00:11.7]} 29.
Rf3 {[%clk 0:00:05.5]} 29... Re5 {[%clk 0:00:09.6]} 30. Rg3 {[%clk 0:00:05.6]}
30... Rg5 {[%clk 0:00:09.6]} 31. Rxg5 {[%clk 0:00:06.2]} 31... hxg5 {[%clk
0:00:09.3]} 32. Be3 {[%clk 0:00:06]} 32... f6 {[%clk 0:00:09.2]} 33. Qd8+ {[%clk
0:00:06.1]} 33... Kh7 {[%clk 0:00:09.2]} 34. Qd1 {[%clk 0:00:06.6]} 34... Qe4
{[%clk 0:00:08.5]} 35. Qd2 {[%clk 0:00:07.2]} 35... Kg6 {[%clk 0:00:08.1]} 36.
Bg1 {[%clk 0:00:07.4]} 36... Kh7 {[%clk 0:00:07.2]} 37. Qf2 {[%clk 0:00:07.5]}
37... f5 {[%clk 0:00:07.2]} 38. Qd2 {[%clk 0:00:07.5]} 38... f4 {[%clk
0:00:07.6]} 39. Qf2 {[%clk 0:00:06.9]} 39... Qe5 {[%clk 0:00:07]} 40. Qd4 {[%clk
0:00:05.9]} 40... Qe2 {[%clk 0:00:05.3]} 41. Qf2 {[%clk 0:00:06.5]} 41... Qe4
{[%clk 0:00:04.8]} 42. a3 {[%clk 0:00:05.6]} 42... b5 {[%clk 0:00:04.4]} 43. Qd2
{[%clk 0:00:03.6]} 43... Kg6 {[%clk 0:00:04.1]} 44. Qf2 {[%clk 0:00:03.4]} 44...
f3 {[%clk 0:00:03]} 45. gxf3 {[%clk 0:00:02.6]} 45... Qxf3 {[%clk 0:00:03.4]}
46. Qxf3 {[%clk 0:00:03.3]} 46... Bxf3 {[%clk 0:00:04.1]} 47. Kg3 {[%clk
0:00:04.1]} 47... Bd5 {[%clk 0:00:04.7]} 48. Bc5 {[%clk 0:00:04.6]} 48... Kf5
{[%clk 0:00:03.7]} 49. Bb4 {[%clk 0:00:05.5]} 49... g6 {[%clk 0:00:03.6]} 50.
Bc3 {[%clk 0:00:06]} 50... Bc4 {[%clk 0:00:03.9]} 51. Bb4 {[%clk 0:00:06.3]}
51... Be6 {[%clk 0:00:04]} 52. Ba5 {[%clk 0:00:06.9]} 52... Ke4 {[%clk
0:00:03.2]} 53. Bd2 {[%clk 0:00:07.4]} 53... Kf5 {[%clk 0:00:03.6]} 54. Bb4
{[%clk 0:00:08]} 54... Bc4 {[%clk 0:00:04.3]} 55. Bc5 {[%clk 0:00:08.1]} 55...
Bd5 {[%clk 0:00:04.9]} 56. Bb4 {[%clk 0:00:08.6]} 56... Bc4 {[%clk 0:00:05.5]}
57. Bc3 {[%clk 0:00:08.1]} 57... Bd5 {[%clk 0:00:06.1]} 58. Bd2 {[%clk
0:00:08.6]} 58... Bc4 {[%clk 0:00:06.8]} 59. Bb4 {[%clk 0:00:09]} 59... Bd5
{[%clk 0:00:07.5]} 60. Bc5 {[%clk 0:00:09.3]} 60... Bc4 {[%clk 0:00:07.9]} 61.
Bb4 {[%clk 0:00:10.2]} 1/2-1/2

[Event "Early-Titled-Tuesday-Blitz-December-26-2023"]
[Site "Chess.com"]
[Date "2023.12.26"]
[Round "2"]
[White "elchacal664"]
[Black "Chessdreamer2020"]
[Result "1/2-1/2"]
[WhiteElo "2288"]
[BlackElo "2525"]
[TimeControl "180+1"]
[EndTime "8:18:19 PST"]
[Termination "Game drawn by repetition"]

1. e4 {[%clk 0:02:59.6]} 1... c5 {[%clk 0:03:00.3]} 2. c3 {[%clk 0:02:59.2]}
2... d5 {[%clk 0:02:59.5]} 3. d3 {[%clk 0:02:55.9]} 3... Nf6 {[%clk 0:03:00.4]}
4. Nd2 {[%clk 0:02:45.6]} 4... Nc6 {[%clk 0:03:00.3]} 5. g3 {[%clk 0:02:44.7]}
5... e5 {[%clk 0:03:00.3]} 6. Bg2 {[%clk 0:02:43.8]} 6... Bg4 {[%clk 0:02:59.6]}
7. Qc2 {[%clk 0:02:40.9]} 7... Be7 {[%clk 0:02:56.8]} 8. h3 {[%clk 0:02:39.1]}
8... Be6 {[%clk 0:02:56.3]} 9. Ngf3 {[%clk 0:02:37.3]} 9... h6 {[%clk
0:02:56.2]} 10. O-O {[%clk 0:02:35.7]} 10... O-O {[%clk 0:02:56.7]} 11. Re1
{[%clk 0:02:34.7]} 11... d4 {[%clk 0:02:52.9]} 12. a3 {[%clk 0:02:17.5]} 12...
Rc8 {[%clk 0:02:49.8]} 13. c4 {[%clk 0:02:16.1]} 13... a6 {[%clk 0:02:48]} 14.
b3 {[%clk 0:02:14.6]} 14... b5 {[%clk 0:02:47.3]} 15. Rf1 {[%clk 0:02:09.1]}
15... Nh7 {[%clk 0:02:40.5]} 16. Ne1 {[%clk 0:02:04.4]} 16... f5 {[%clk
0:02:37.8]} 17. exf5 {[%clk 0:02:02.3]} 17... Bxf5 {[%clk 0:02:36.7]} 18. Ne4
{[%clk 0:01:54.8]} 18... Ng5 {[%clk 0:02:28.2]} 19. Nxg5 {[%clk 0:01:48]} 19...
Bxg5 {[%clk 0:02:29.1]} 20. cxb5 {[%clk 0:01:35.6]} 20... axb5 {[%clk
0:02:28.7]} 21. Qxc5 {[%clk 0:01:33.6]} 21... Ne7 {[%clk 0:02:18.4]} 22. Qxe5
{[%clk 0:00:54.2]} 22... Bxc1 {[%clk 0:02:18.3]} 23. Nf3 {[%clk 0:00:53.4]}
23... Bb2 {[%clk 0:02:17.7]} 24. Rae1 {[%clk 0:00:51.4]} 24... Ng6 {[%clk
0:01:57.7]} 25. Qxb5 {[%clk 0:00:47.4]} 25... Bxa3 {[%clk 0:01:53.8]} 26. g4
{[%clk 0:00:36.3]} 26... Rc5 {[%clk 0:01:41.1]} 27. Qa6 {[%clk 0:00:31.5]} 27...
Bb4 {[%clk 0:01:25.2]} 28. gxf5 {[%clk 0:00:29.8]} 28... Bxe1 {[%clk 0:01:25.4]}
29. fxg6 {[%clk 0:00:26.1]} 29... Bc3 {[%clk 0:01:25.1]} 30. Qe6+ {[%clk
0:00:23.9]} 30... Kh8 {[%clk 0:01:24.8]} 31. Ne5 {[%clk 0:00:24.4]} 31... Rxe5
{[%clk 0:01:18.5]} 32. Qxe5 {[%clk 0:00:25.3]} 32... Qb6 {[%clk 0:01:17.3]} 33.
Qe7 {[%clk 0:00:18.2]} 33... Bb4 {[%clk 0:01:17.3]} 34. Qe4 {[%clk 0:00:16.3]}
34... Bc3 {[%clk 0:01:14.6]} 35. Qe7 {[%clk 0:00:15.3]} 35... Qf6 {[%clk
0:01:14.5]} 36. Qxf6 {[%clk 0:00:14.5]} 36... Rxf6 {[%clk 0:01:15.4]} 37. Be4
{[%clk 0:00:14.7]} 37... Rb6 {[%clk 0:01:15.7]} 38. Rb1 {[%clk 0:00:14.6]} 38...
Kg8 {[%clk 0:01:15.8]} 39. Kg2 {[%clk 0:00:15]} 39... Kf8 {[%clk 0:01:16.2]} 40.
Kf3 {[%clk 0:00:15.5]} 40... Ke7 {[%clk 0:01:16.8]} 41. Kg4 {[%clk 0:00:16.1]}
41... Kf6 {[%clk 0:01:17.3]} 42. f4 {[%clk 0:00:16.4]} 42... Rb5 {[%clk
0:01:17.5]} 43. h4 {[%clk 0:00:16.5]} 43... h5+ {[%clk 0:01:17.2]} 44. Kf3
{[%clk 0:00:16.6]} 44... Rb6 {[%clk 0:01:16.8]} 45. Kg3 {[%clk 0:00:14.7]} 45...
Rb8 {[%clk 0:01:16.6]} 46. Kf3 {[%clk 0:00:15.2]} 46... Rb6 {[%clk 0:01:17]} 47.
Kg3 {[%clk 0:00:15.3]} 47... Bb4 {[%clk 0:01:16.9]} 48. Ra1 {[%clk 0:00:12.9]}
48... Bc3 {[%clk 0:01:17.2]} 49. Ra7 {[%clk 0:00:13.4]} 49... Rxb3 {[%clk
0:01:15.5]} 50. Rf7+ {[%clk 0:00:14]} 50... Ke6 {[%clk 0:01:15.9]} 51. Rxg7
{[%clk 0:00:14.4]} 51... Be1+ {[%clk 0:01:11.9]} 52. Kf3 {[%clk 0:00:14.4]}
52... Bxh4 {[%clk 0:01:11.8]} 53. f5+ {[%clk 0:00:14.1]} 53... Ke5 {[%clk
0:01:10.7]} 54. Rb7 {[%clk 0:00:13.1]} 54... Rxb7 {[%clk 0:01:09.5]} 55. Bxb7
{[%clk 0:00:14]} 55... Bf6 {[%clk 0:01:09.7]} 56. Be4 {[%clk 0:00:13.3]} 56...
Bg7 {[%clk 0:01:09.7]} 57. Kg2 {[%clk 0:00:13.6]} 57... Kf4 {[%clk 0:01:09.3]}
58. Kh3 {[%clk 0:00:14.5]} 58... Bf6 {[%clk 0:01:09.5]} 59. g7 {[%clk
0:00:13.3]} 59... Bxg7 {[%clk 0:01:09.5]} 60. Kh4 {[%clk 0:00:14.2]} 60... Ke5
{[%clk 0:01:05.6]} 61. Kxh5 {[%clk 0:00:15.1]} 61... Kf6 {[%clk 0:01:06.1]} 62.
Kg4 {[%clk 0:00:14.2]} 62... Bh6 {[%clk 0:01:05.7]} 63. Bg2 {[%clk 0:00:12.8]}
63... Be3 {[%clk 0:01:06.6]} 64. Bh3 {[%clk 0:00:13]} 64... Ke5 {[%clk
0:01:06.3]} 65. Kf3 {[%clk 0:00:13.9]} 65... Bg5 {[%clk 0:01:06.2]} 66. Bg4
{[%clk 0:00:13.7]} 66... Be3 {[%clk 0:01:06.5]} 67. Bh3 {[%clk 0:00:14.6]} 67...
Bh6 {[%clk 0:01:06.9]} 68. Bg4 {[%clk 0:00:15.2]} 68... Bd2 {[%clk 0:01:06.2]}
69. Kg3 {[%clk 0:00:15.5]} 69... Be3 {[%clk 0:01:06.7]} 70. Kh4 {[%clk
0:00:15.7]} 70... Kf6 {[%clk 0:01:07.2]} 71. Kh5 {[%clk 0:00:16.2]} 71... Bf4
{[%clk 0:01:07.6]} 72. Bh3 {[%clk 0:00:16.8]} 72... Bg5 {[%clk 0:01:07.6]} 73.
Kg4 {[%clk 0:00:17.7]} 73... Be3 {[%clk 0:01:08.4]} 74. Kf3 {[%clk 0:00:18.5]}
74... Ke5 {[%clk 0:01:08.2]} 75. Bg4 {[%clk 0:00:18.7]} 75... Bd2 {[%clk
0:01:07.7]} 76. Ke2 {[%clk 0:00:19.3]} 76... Be3 {[%clk 0:01:07.9]} 77. Kd1
{[%clk 0:00:20]} 77... Kf4 {[%clk 0:01:06.3]} 78. Bh3 {[%clk 0:00:20.1]} 78...
Kg3 {[%clk 0:01:06.6]} 79. Bf1 {[%clk 0:00:20.1]} 79... Bg5 {[%clk 0:01:06.6]}
80. Be2 {[%clk 0:00:19.9]} 80... Kf4 {[%clk 0:01:07]} 81. Kc2 {[%clk 0:00:19.7]}
81... Kxf5 {[%clk 0:01:07.2]} 82. Kb3 {[%clk 0:00:20.3]} 82... Ke5 {[%clk
0:01:08.1]} 83. Kc4 {[%clk 0:00:21.1]} 83... Be3 {[%clk 0:01:08.6]} 84. Bf3
{[%clk 0:00:21.9]} 84... Kd6 {[%clk 0:01:09.1]} 85. Be4 {[%clk 0:00:22.8]} 85...
Ke5 {[%clk 0:01:09.6]} 86. Kb3 {[%clk 0:00:23.7]} 86... Kd6 {[%clk 0:01:10.2]}
87. Kc2 {[%clk 0:00:24.6]} 87... Kc5 {[%clk 0:01:10.6]} 88. Kb3 {[%clk
0:00:25.5]} 88... Kb5 {[%clk 0:01:10.9]} 89. Kc2 {[%clk 0:00:25.4]} 89... Kb4
{[%clk 0:01:11.4]} 90. Kd1 {[%clk 0:00:26.3]} 90... Kc3 {[%clk 0:01:11.8]} 91.
Ke2 {[%clk 0:00:27.2]} 91... Bf4 {[%clk 0:01:12.2]} 92. Kf3 {[%clk 0:00:28.1]}
92... Bd6 {[%clk 0:01:12.9]} 93. Kg4 {[%clk 0:00:29]} 93... Bb4 {[%clk
0:01:13.8]} 94. Kf5 {[%clk 0:00:29.9]} 94... Ba3 {[%clk 0:01:14.6]} 95. Kg6
{[%clk 0:00:30.8]} 95... Bc1 {[%clk 0:01:15.5]} 96. Kh5 {[%clk 0:00:31.7]} 96...
Be3 {[%clk 0:01:16.1]} 97. Kg6 {[%clk 0:00:32.6]} 97... Bd2 {[%clk 0:01:17]} 98.
Kh7 {[%clk 0:00:33.5]} 98... Be3 {[%clk 0:01:17.7]} 99. Kg8 {[%clk 0:00:34.4]}
99... Bd2 {[%clk 0:01:18.6]} 100. Kf7 {[%clk 0:00:35.3]} 100... Be3 {[%clk
0:01:19.4]} 101. Ke8 {[%clk 0:00:36.2]} 101... Bd2 {[%clk 0:01:20.3]} 102. Kd7
{[%clk 0:00:37.1]} 102... Be3 {[%clk 0:01:21.2]} 103. Ke6 {[%clk 0:00:38]}
103... Bd2 {[%clk 0:01:22.1]} 104. Kf5 {[%clk 0:00:38.9]} 104... Be3 {[%clk
0:01:22.9]} 105. Kg6 {[%clk 0:00:39.8]} 105... Bd2 {[%clk 0:01:23.8]} 106. Kf7
{[%clk 0:00:40.7]} 106... Be3 {[%clk 0:01:24.7]} 107. Ke6 {[%clk 0:00:41.6]}
107... Bd2 {[%clk 0:01:25.6]} 108. Kd7 {[%clk 0:00:42.5]} 108... Be3 {[%clk
0:01:26.5]} 109. Kc6 {[%clk 0:00:43.4]} 109... Bd2 {[%clk 0:01:27.4]} 110. Kd6
{[%clk 0:00:44.3]} 110... Be3 {[%clk 0:01:28.1]} 111. Ke6 {[%clk 0:00:45.2]}
1/2-1/2